[Event "Early-Titled-Tuesday-Blitz-January-23-2024"]
[Site "Chess.com"]
[Date "2024.01.23"]
[Round "4"]
[White "aghasiyevkamal"]
[Black "giomar27"]
[Result "0-1"]
[WhiteElo "2631"]
[BlackElo "2416"]
[TimeControl "180+1"]
[EndTime "8:39:42 PST"]
[Termination "giomar27 won by resignation"]

1. e4 {[%clk 0:03:00.1]} 1... g6 {[%clk 0:02:58.6]} 2. d4 {[%clk 0:02:59.8]}
2... Bg7 {[%clk 0:02:59.5]} 3. Nc3 {[%clk 0:02:59.5]} 3... a6 {[%clk 0:02:59.9]}
4. Be3 {[%clk 0:02:58]} 4... b5 {[%clk 0:02:59.6]} 5. h3 {[%clk 0:02:58.3]} 5...
d6 {[%clk 0:02:59.5]} 6. Bd3 {[%clk 0:02:58.5]} 6... Nd7 {[%clk 0:02:59.1]} 7.
Nf3 {[%clk 0:02:58.3]} 7... Bb7 {[%clk 0:02:59.4]} 8. Ne2 {[%clk 0:02:58]} 8...
c5 {[%clk 0:02:57.6]} 9. c3 {[%clk 0:02:58.1]} 9... e6 {[%clk 0:02:57.8]} 10.
O-O {[%clk 0:02:57.1]} 10... Ne7 {[%clk 0:02:57.9]} 11. a4 {[%clk 0:02:57.4]}
11... c4 {[%clk 0:02:55.9]} 12. Bc2 {[%clk 0:02:55.5]} 12... O-O {[%clk
0:02:54.9]} 13. Qc1 {[%clk 0:02:47.2]} 13... Nf6 {[%clk 0:02:45.5]} 14. Ng3
{[%clk 0:02:45.8]} 14... d5 {[%clk 0:02:41.3]} 15. e5 {[%clk 0:02:43.3]} 15...
Ne4 {[%clk 0:02:41.6]} 16. Nxe4 {[%clk 0:02:41.2]} 16... dxe4 {[%clk 0:02:40.8]}
17. Ng5 {[%clk 0:02:38]} 17... Nf5 {[%clk 0:02:29.1]} 18. Nxe4 {[%clk
0:02:37.1]} 18... Qd5 {[%clk 0:02:21.5]} 19. f3 {[%clk 0:02:32.1]} 19... b4
{[%clk 0:02:11.3]} 20. Bg5 {[%clk 0:02:27.3]} 20... b3 {[%clk 0:02:08.2]} 21.
Bb1 {[%clk 0:02:26]} 21... Nxd4 {[%clk 0:02:01.9]} 22. cxd4 {[%clk 0:02:23]}
22... Qxd4+ {[%clk 0:02:01.8]} 23. Be3 {[%clk 0:02:10.5]} 23... Qxe5 {[%clk
0:02:00.8]} 24. f4 {[%clk 0:02:07.4]} 24... Qxb2 {[%clk 0:01:58.7]} 25. Qxc4
{[%clk 0:01:51.5]} 25... Qxa1 {[%clk 0:01:54.1]} 26. Qxb3 {[%clk 0:01:51.3]}
26... Qb2 {[%clk 0:01:53.5]} 27. Qxb2 {[%clk 0:01:46.3]} 27... Bxb2 {[%clk
0:01:53.4]} 28. Nc5 {[%clk 0:01:45.8]} 28... Bd5 {[%clk 0:01:44.6]} 29. Bd3
{[%clk 0:01:41.8]} 29... a5 {[%clk 0:01:39.5]} 30. Bb5 {[%clk 0:01:38.5]} 30...
Rfc8 {[%clk 0:01:33.5]} 31. Rf2 {[%clk 0:01:31.8]} 31... Bc3 {[%clk 0:01:31.5]}
32. Kh2 {[%clk 0:01:27.9]} 32... Bb4 {[%clk 0:01:31.5]} 33. Nd7 {[%clk
0:01:27.7]} 33... Rc3 {[%clk 0:01:25.7]} 34. Nf6+ {[%clk 0:01:21.4]} 34... Kf8
{[%clk 0:01:25.5]} 35. Bd4 {[%clk 0:01:16.6]} 35... Rc1 {[%clk 0:01:23.1]} 36.
Nxh7+ {[%clk 0:01:12.6]} 36... Ke7 {[%clk 0:01:22.5]} 37. Bf6+ {[%clk
0:01:09.6]} 37... Kd6 {[%clk 0:01:19.5]} 38. Ng5 {[%clk 0:01:08.1]} 38... Ra7
{[%clk 0:01:13.8]} 39. Bd4 {[%clk 0:00:59.5]} 39... Bc5 {[%clk 0:01:11.3]} 40.
Rd2 {[%clk 0:00:42.5]} 40... Bxd4 {[%clk 0:01:09.5]} 41. Rxd4 {[%clk 0:00:42.7]}
41... Rc2 {[%clk 0:01:05.3]} 42. Ne4+ {[%clk 0:00:30.3]} 42... Ke7 {[%clk
0:01:05.1]} 43. Bf1 {[%clk 0:00:26.7]} 43... Rac7 {[%clk 0:01:00.5]} 44. Nd2
{[%clk 0:00:25.4]} 44... Ra2 {[%clk 0:00:58.4]} 45. h4 {[%clk 0:00:23.8]} 45...
Rcc2 {[%clk 0:00:56.1]} 46. Nc4 {[%clk 0:00:16.1]} 46... Bxg2 {[%clk 0:00:52.6]}
47. Bxg2 {[%clk 0:00:15.8]} 47... Rxg2+ {[%clk 0:00:52.4]} 48. Kh3 {[%clk
0:00:16.7]} 48... f5 {[%clk 0:00:42.8]} 49. Ne5 {[%clk 0:00:14.4]} 49... Rgd2
{[%clk 0:00:29.2]} 50. Rxd2 {[%clk 0:00:08.7]} 50... Rxd2 {[%clk 0:00:28.9]} 51.
Nc6+ {[%clk 0:00:09.3]} 51... Kf6 {[%clk 0:00:26.7]} 52. Nxa5 {[%clk 0:00:10.2]}
52... Rd4 {[%clk 0:00:26.3]} 53. Kg3 {[%clk 0:00:09.4]} 53... Rxa4 {[%clk
0:00:26.4]} 54. Nc6 {[%clk 0:00:09.4]} 54... Ra3+ {[%clk 0:00:25.6]} 55. Kg2
{[%clk 0:00:09.6]} 55... Ra4 {[%clk 0:00:19.9]} 56. Kg3 {[%clk 0:00:09]} 56...
Kg7 {[%clk 0:00:19.7]} 57. Nd8 {[%clk 0:00:08.2]} 57... Re4 {[%clk 0:00:18.6]}
58. Nc6 {[%clk 0:00:06.6]} 58... Kh6 {[%clk 0:00:18.5]} 59. Ne5 {[%clk
0:00:05.7]} 59... Kh5 {[%clk 0:00:17.5]} 60. Kf3 {[%clk 0:00:05.6]} 60... Ra4
{[%clk 0:00:16.9]} 61. Ke3 {[%clk 0:00:03]} 61... Ra3+ {[%clk 0:00:17.3]} 62.
Kd4 {[%clk 0:00:03.3]} 62... Ra4+ {[%clk 0:00:15.8]} 63. Ke3 {[%clk 0:00:03.3]}
63... Re4+ {[%clk 0:00:15]} 64. Kf3 {[%clk 0:00:03.2]} 64... Rxe5 {[%clk
0:00:15.7]} 65. fxe5 {[%clk 0:00:03.5]} 65... Kxh4 {[%clk 0:00:16.6]} 66. Ke3
{[%clk 0:00:04.1]} 66... Kg5 {[%clk 0:00:17.5]} 67. Kd4 {[%clk 0:00:05]} 67...
Kg4 {[%clk 0:00:18.1]} 68. Kc5 {[%clk 0:00:05.4]} 68... f4 {[%clk 0:00:17.6]}
69. Kd6 {[%clk 0:00:06.3]} 69... f3 {[%clk 0:00:18.5]} 70. Kxe6 {[%clk
0:00:07.1]} 70... f2 {[%clk 0:00:19.4]} 71. Kd7 {[%clk 0:00:08]} 71... f1=Q
{[%clk 0:00:19.9]} 72. e6 {[%clk 0:00:08.9]} 72... Qe2 {[%clk 0:00:20.4]} 73. e7
{[%clk 0:00:09.8]} 73... Kf5 {[%clk 0:00:20.8]} 74. e8=Q {[%clk 0:00:09.9]}
74... Qxe8+ {[%clk 0:00:20.9]} 75. Kxe8 {[%clk 0:00:10.8]} 75... g5 {[%clk
0:00:21.8]} 0-1

[Event "Early-Titled-Tuesday-Blitz-January-23-2024"]
[Site "Chess.com"]
[Date "2024.01.23"]
[Round "4"]
[White "RantomOpening"]
[Black "Nechitaylo_Nikita"]
[Result "1-0"]
[WhiteElo "2524"]
[BlackElo "2315"]
[TimeControl "180+1"]
[EndTime "8:39:43 PST"]
[Termination "RantomOpening won by checkmate"]

1. e4 {[%clk 0:02:59.2]} 1... c5 {[%clk 0:03:00.4]} 2. c3 {[%clk 0:02:59]} 2...
Nf6 {[%clk 0:02:59.8]} 3. e5 {[%clk 0:02:59.3]} 3... Nd5 {[%clk 0:03:00.4]} 4.
d4 {[%clk 0:02:59.7]} 4... d6 {[%clk 0:03:00.2]} 5. Nf3 {[%clk 0:02:59.8]} 5...
cxd4 {[%clk 0:03:00.8]} 6. cxd4 {[%clk 0:03:00]} 6... e6 {[%clk 0:03:01.6]} 7.
Bc4 {[%clk 0:02:59.9]} 7... Bd7 {[%clk 0:03:00.8]} 8. Bxd5 {[%clk 0:02:59.4]}
8... exd5 {[%clk 0:03:00.8]} 9. Nc3 {[%clk 0:02:57.1]} 9... dxe5 {[%clk
0:02:52.5]} 10. dxe5 {[%clk 0:02:50.9]} 10... Be6 {[%clk 0:02:49.4]} 11. O-O
{[%clk 0:02:44.4]} 11... Bc5 {[%clk 0:02:43.5]} 12. Bg5 {[%clk 0:02:41.1]} 12...
Qd7 {[%clk 0:02:35.2]} 13. Rc1 {[%clk 0:02:35.8]} 13... Bb6 {[%clk 0:01:21.9]}
14. Qd2 {[%clk 0:01:35.5]} 14... O-O {[%clk 0:01:20.6]} 15. Rfd1 {[%clk
0:01:32.7]} 15... h6 {[%clk 0:01:09.6]} 16. Bxh6 {[%clk 0:01:29.3]} 16... gxh6
{[%clk 0:01:08.6]} 17. Qxh6 {[%clk 0:01:30.2]} 17... f6 {[%clk 0:00:41.8]} 18.
exf6 {[%clk 0:01:27.2]} 18... Qh7 {[%clk 0:00:42.4]} 19. Qxh7+ {[%clk
0:01:26.5]} 19... Kxh7 {[%clk 0:00:42.8]} 20. Ng5+ {[%clk 0:01:27.4]} 20... Kg8
{[%clk 0:00:19.7]} 21. Nxe6 {[%clk 0:01:26.7]} 21... Rxf6 {[%clk 0:00:20.3]} 22.
Nd4 {[%clk 0:01:23]} 22... Nc6 {[%clk 0:00:17.1]} 23. Nxd5 {[%clk 0:01:09.3]}
23... Bxd4 {[%clk 0:00:07.4]} 24. Rxd4 {[%clk 0:01:03.8]} 24... Nxd4 {[%clk
0:00:06.2]} 25. Nxf6+ {[%clk 0:01:03.8]} 25... Kf7 {[%clk 0:00:07]} 26. Rd1
{[%clk 0:01:02.4]} 26... Rd8 {[%clk 0:00:02]} 27. Ne4 {[%clk 0:00:50.1]} 27...
Ne2+ {[%clk 0:00:02.1]} 28. Kf1 {[%clk 0:00:51]} 28... Rxd1+ {[%clk 0:00:02.3]}
29. Kxe2 {[%clk 0:00:51.9]} 29... Ra1 {[%clk 0:00:03]} 30. Nc3 {[%clk
0:00:50.2]} 30... b5 {[%clk 0:00:02.7]} 31. a3 {[%clk 0:00:49.7]} 31... a5
{[%clk 0:00:02.6]} 32. Nxb5 {[%clk 0:00:50.1]} 32... Ra2 {[%clk 0:00:03.4]} 33.
Nd6+ {[%clk 0:00:48.3]} 33... Ke6 {[%clk 0:00:04.1]} 34. Nc4 {[%clk 0:00:49.2]}
34... Kd5 {[%clk 0:00:04.8]} 35. Kd3 {[%clk 0:00:47.3]} 35... a4 {[%clk
0:00:02.4]} 36. Ne3+ {[%clk 0:00:47.5]} 36... Ke5 {[%clk 0:00:02.3]} 37. Kc2
{[%clk 0:00:45.2]} 37... Ra1 {[%clk 0:00:02.2]} 38. Nd1 {[%clk 0:00:45.6]} 38...
Kd4 {[%clk 0:00:01.6]} 39. h4 {[%clk 0:00:45.2]} 39... Ke5 {[%clk 0:00:01.9]}
40. g4 {[%clk 0:00:45]} 40... Kf4 {[%clk 0:00:02.2]} 41. h5 {[%clk 0:00:45.3]}
41... Kg5 {[%clk 0:00:02.8]} 42. f4+ {[%clk 0:00:45.3]} 42... Kh6 {[%clk
0:00:01.7]} 43. f5 {[%clk 0:00:43]} 43... Kg5 {[%clk 0:00:01.4]} 44. Kd2 {[%clk
0:00:34.3]} 44... Rb1 {[%clk 0:00:01.5]} 45. Ke1 {[%clk 0:00:26.8]} 45... Rc1
{[%clk 0:00:01.4]} 46. Ke2 {[%clk 0:00:27.7]} 46... Rc5 {[%clk 0:00:01.6]} 47.
Nf2 {[%clk 0:00:27.4]} 47... Re5+ {[%clk 0:00:01.3]} 48. Kf3 {[%clk 0:00:27.8]}
48... Rc5 {[%clk 0:00:01.9]} 49. Ne4+ {[%clk 0:00:28.2]} 49... Kh6 {[%clk
0:00:02.4]} 50. Nxc5 {[%clk 0:00:26.6]} 50... Kg5 {[%clk 0:00:02.8]} 51. Ne4+
{[%clk 0:00:26.5]} 51... Kh6 {[%clk 0:00:02.7]} 52. g5+ {[%clk 0:00:25.5]} 52...
Kxh5 {[%clk 0:00:02.8]} 53. g6 {[%clk 0:00:26.1]} 53... Kh6 {[%clk 0:00:03.1]}
54. Kf4 {[%clk 0:00:26.1]} 54... Kg7 {[%clk 0:00:03.6]} 55. Kg5 {[%clk
0:00:26.4]} 55... Kf8 {[%clk 0:00:03.9]} 56. f6 {[%clk 0:00:27.3]} 56... Kg8
{[%clk 0:00:04.4]} 57. f7+ {[%clk 0:00:26.4]} 57... Kg7 {[%clk 0:00:04.8]} 58.
f8=Q+ {[%clk 0:00:23.7]} 58... Kxf8 {[%clk 0:00:05.1]} 59. Kh6 {[%clk
0:00:24.2]} 59... Kg8 {[%clk 0:00:02.5]} 60. Nf6+ {[%clk 0:00:24.2]} 60... Kf8
{[%clk 0:00:03.4]} 61. g7+ {[%clk 0:00:25.1]} 61... Ke7 {[%clk 0:00:04.2]} 62.
g8=Q {[%clk 0:00:25.1]} 62... Kxf6 {[%clk 0:00:05.1]} 63. Qg6+ {[%clk
0:00:25.6]} 63... Ke5 {[%clk 0:00:06]} 64. Qc2 {[%clk 0:00:25.6]} 64... Kd4
{[%clk 0:00:06.9]} 65. Qxa4+ {[%clk 0:00:26.5]} 65... Ke3 {[%clk 0:00:07.6]} 66.
Qc2 {[%clk 0:00:26.8]} 66... Kd4 {[%clk 0:00:07.5]} 67. Kg7 {[%clk 0:00:27.1]}
67... Ke5 {[%clk 0:00:08.4]} 68. Kf8 {[%clk 0:00:28]} 68... Kd6 {[%clk
0:00:09.3]} 69. b4 {[%clk 0:00:28.6]} 69... Ke5 {[%clk 0:00:10.2]} 70. Qc4
{[%clk 0:00:28.8]} 70... Kf6 {[%clk 0:00:09.7]} 71. a4 {[%clk 0:00:27.5]} 71...
Kg5 {[%clk 0:00:10.6]} 72. a5 {[%clk 0:00:28.4]} 72... Kh6 {[%clk 0:00:11]} 73.
a6 {[%clk 0:00:29.3]} 73... Kg5 {[%clk 0:00:11.9]} 74. a7 {[%clk 0:00:29.7]}
74... Kh6 {[%clk 0:00:12.8]} 75. Qg4 {[%clk 0:00:27.9]} 75... Kh7 {[%clk
0:00:13.1]} 76. Qg7# {[%clk 0:00:28.8]} 1-0

[Event "Early-Titled-Tuesday-Blitz-January-23-2024"]
[Site "Chess.com"]
[Date "2024.01.23"]
[Round "4"]
[White "FGHSMN"]
[Black "Sychev_Klementy"]
[Result "1/2-1/2"]
[WhiteElo "2990"]
[BlackElo "2776"]
[TimeControl "180+1"]
[EndTime "8:39:45 PST"]
[Termination "Game drawn - insufficient material"]

1. d4 {[%clk 0:03:00.9]} 1... Nf6 {[%clk 0:02:54.4]} 2. Bf4 {[%clk 0:03:01.4]}
2... c5 {[%clk 0:02:51.9]} 3. d5 {[%clk 0:03:00.9]} 3... a6 {[%clk 0:02:51.9]}
4. a4 {[%clk 0:02:53.9]} 4... d6 {[%clk 0:02:45.4]} 5. Nc3 {[%clk 0:02:53.3]}
5... e5 {[%clk 0:02:43.2]} 6. Bg5 {[%clk 0:02:47.2]} 6... Be7 {[%clk 0:02:41.1]}
7. Bxf6 {[%clk 0:02:30.7]} 7... Bxf6 {[%clk 0:02:42]} 8. e4 {[%clk 0:02:31]}
8... O-O {[%clk 0:02:11.2]} 9. Be2 {[%clk 0:02:31.4]} 9... Qa5 {[%clk
0:01:48.8]} 10. Nf3 {[%clk 0:02:29.4]} 10... Qb4 {[%clk 0:01:48.8]} 11. Ra3
{[%clk 0:02:18.8]} 11... c4 {[%clk 0:01:10.6]} 12. Ra2 {[%clk 0:02:09.3]} 12...
Nd7 {[%clk 0:01:04.7]} 13. Nd2 {[%clk 0:02:09.6]} 13... Nc5 {[%clk 0:00:46.1]}
14. O-O {[%clk 0:02:09.5]} 14... Bd7 {[%clk 0:00:31.3]} 15. Nxc4 {[%clk
0:02:09.6]} 15... Nxa4 {[%clk 0:00:29.2]} 16. Nxa4 {[%clk 0:02:02.2]} 16... Bxa4
{[%clk 0:00:30.1]} 17. Bd3 {[%clk 0:01:34.4]} 17... Bb5 {[%clk 0:00:24.5]} 18.
c3 {[%clk 0:01:30.2]} 18... Qc5 {[%clk 0:00:23.8]} 19. Na5 {[%clk 0:01:29]}
19... Qc7 {[%clk 0:00:19.8]} 20. Bxb5 {[%clk 0:01:17.6]} 20... axb5 {[%clk
0:00:20]} 21. Qa1 {[%clk 0:01:18.5]} 21... Bg5 {[%clk 0:00:17.1]} 22. Re1 {[%clk
0:01:12.8]} 22... f5 {[%clk 0:00:16.6]} 23. exf5 {[%clk 0:01:10.1]} 23... Rxf5
{[%clk 0:00:17.5]} 24. Nb3 {[%clk 0:01:03.3]} 24... Raf8 {[%clk 0:00:17.4]} 25.
Re2 {[%clk 0:00:58.6]} 25... Qb6 {[%clk 0:00:17]} 26. Ra8 {[%clk 0:00:34.5]}
26... Rxf2 {[%clk 0:00:15.7]} 27. Rxf8+ {[%clk 0:00:35.1]} 27... Rxf8+ {[%clk
0:00:15.5]} 28. Kh1 {[%clk 0:00:36]} 28... Qc7 {[%clk 0:00:14.4]} 29. Re1 {[%clk
0:00:31.5]} 29... Qc4 {[%clk 0:00:13.7]} 30. Na5 {[%clk 0:00:31]} 30... Qh4
{[%clk 0:00:13.6]} 31. g3 {[%clk 0:00:13.8]} 31... Qh3 {[%clk 0:00:10.9]} 32.
Nxb7 {[%clk 0:00:09.8]} 32... h5 {[%clk 0:00:05.7]} 33. Qa7 {[%clk 0:00:05.8]}
33... Rf1+ {[%clk 0:00:03.7]} 34. Rxf1 {[%clk 0:00:06.2]} 34... Qxf1+ {[%clk
0:00:03.7]} 35. Qg1 {[%clk 0:00:06.9]} 35... Qd3 {[%clk 0:00:03.4]} 36. Qg2
{[%clk 0:00:05]} 36... Qd1+ {[%clk 0:00:03.3]} 37. Qg1 {[%clk 0:00:05.7]} 37...
Qxd5+ {[%clk 0:00:03.5]} 38. Qg2 {[%clk 0:00:06.4]} 38... Qd1+ {[%clk
0:00:03.6]} 39. Qg1 {[%clk 0:00:07]} 39... Qd3 {[%clk 0:00:03.9]} 40. Qg2 {[%clk
0:00:07.7]} 40... Be3 {[%clk 0:00:03.4]} 41. h4 {[%clk 0:00:07.8]} 41... Bc1
{[%clk 0:00:02.2]} 42. b4 {[%clk 0:00:07.1]} 42... e4 {[%clk 0:00:02.6]} 43. Qh3
{[%clk 0:00:05.5]} 43... Qd1+ {[%clk 0:00:02.2]} 44. Kh2 {[%clk 0:00:06.2]}
44... Qe2+ {[%clk 0:00:02.4]} 45. Kh1 {[%clk 0:00:07]} 45... Qf3+ {[%clk
0:00:02.3]} 46. Kh2 {[%clk 0:00:07.7]} 46... Be3 {[%clk 0:00:02.4]} 47. Qe6+
{[%clk 0:00:08.1]} 47... Kh7 {[%clk 0:00:02.3]} 48. Qh3 {[%clk 0:00:04.1]} 48...
Qe2+ {[%clk 0:00:02.2]} 49. Qg2 {[%clk 0:00:04.6]} 49... Qd3 {[%clk 0:00:02.6]}
50. Qh3 {[%clk 0:00:03.8]} 50... Qc2+ {[%clk 0:00:02.8]} 51. Qg2 {[%clk
0:00:04.1]} 51... Qd3 {[%clk 0:00:03.2]} 52. Qh3 {[%clk 0:00:04.8]} 52... Qd2+
{[%clk 0:00:03.5]} 53. Qg2 {[%clk 0:00:05.5]} 53... Bh6 {[%clk 0:00:03.6]} 54.
Qxd2 {[%clk 0:00:04.6]} 54... Bxd2 {[%clk 0:00:03.9]} 55. Kg2 {[%clk 0:00:05.5]}
55... Bxc3 {[%clk 0:00:04.3]} 56. Nxd6 {[%clk 0:00:05.3]} 56... e3 {[%clk
0:00:04.3]} 57. Kf3 {[%clk 0:00:05.6]} 57... Bxb4 {[%clk 0:00:04.7]} 58. Nxb5
{[%clk 0:00:05.9]} 58... Bc5 {[%clk 0:00:04.3]} 59. Nc3 {[%clk 0:00:06.6]} 59...
Kg6 {[%clk 0:00:04.5]} 60. Nd5 {[%clk 0:00:07.2]} 60... Kf5 {[%clk 0:00:04.4]}
61. Nf4 {[%clk 0:00:05.8]} 61... g6 {[%clk 0:00:04.5]} 62. Ng2 {[%clk
0:00:06.2]} 62... Ke5 {[%clk 0:00:04.6]} 63. Nxe3 {[%clk 0:00:06.1]} 63... Bxe3
{[%clk 0:00:04.7]} 64. Kxe3 {[%clk 0:00:07]} 64... Kf5 {[%clk 0:00:05.3]} 65.
Kf3 {[%clk 0:00:07.6]} 65... g5 {[%clk 0:00:06]} 66. hxg5 {[%clk 0:00:07.7]}
66... Kxg5 {[%clk 0:00:06.9]} 67. Kf2 {[%clk 0:00:08.6]} 67... Kg4 {[%clk
0:00:07.5]} 68. Kg2 {[%clk 0:00:09.3]} 68... h4 {[%clk 0:00:08.2]} 69. gxh4
{[%clk 0:00:10.2]} 69... Kxh4 {[%clk 0:00:08.8]} 1/2-1/2

[Event "Early-Titled-Tuesday-Blitz-January-23-2024"]
[Site "Chess.com"]
[Date "2024.01.23"]
[Round "4"]
[White "ElCoachRene"]
[Black "BashiqChess"]
[Result "0-1"]
[WhiteElo "1925"]
[BlackElo "2467"]
[TimeControl "180+1"]
[EndTime "8:39:45 PST"]
[Termination "BashiqChess won on time"]

1. Nf3 {[%clk 0:03:00.9]} 1... d5 {[%clk 0:02:58.7]} 2. d4 {[%clk 0:03:00.2]}
2... Nf6 {[%clk 0:02:58.3]} 3. Bf4 {[%clk 0:03:00.7]} 3... e6 {[%clk 0:02:57.5]}
4. e3 {[%clk 0:03:00.9]} 4... Bd6 {[%clk 0:02:57.7]} 5. Bg3 {[%clk 0:03:01.2]}
5... O-O {[%clk 0:02:56.1]} 6. Nbd2 {[%clk 0:03:01]} 6... c5 {[%clk 0:02:56.5]}
7. c3 {[%clk 0:03:00.2]} 7... Qc7 {[%clk 0:02:56.4]} 8. Ne5 {[%clk 0:02:59.4]}
8... Nbd7 {[%clk 0:02:54.5]} 9. f4 {[%clk 0:02:58.1]} 9... Ne4 {[%clk
0:02:51.9]} 10. Bd3 {[%clk 0:02:54.5]} 10... f5 {[%clk 0:02:48.2]} 11. Ndf3
{[%clk 0:02:42.5]} 11... Nxe5 {[%clk 0:02:45.6]} 12. Nxe5 {[%clk 0:02:29.1]}
12... Bxe5 {[%clk 0:02:44.5]} 13. fxe5 {[%clk 0:02:24.6]} 13... Qf7 {[%clk
0:02:29.1]} 14. Bh4 {[%clk 0:02:17.8]} 14... Bd7 {[%clk 0:02:25.5]} 15. O-O
{[%clk 0:02:14.4]} 15... Qg6 {[%clk 0:02:19.1]} 16. Be2 {[%clk 0:02:03.2]} 16...
Qh6 {[%clk 0:02:14.5]} 17. Be7 {[%clk 0:01:59.1]} 17... Qxe3+ {[%clk 0:02:13.4]}
18. Kh1 {[%clk 0:01:52.9]} 18... Rf7 {[%clk 0:02:13.2]} 19. Bh4 {[%clk
0:01:45.5]} 19... Qh6 {[%clk 0:01:42.3]} 20. Be1 {[%clk 0:01:33]} 20... g5
{[%clk 0:01:41.1]} 21. Bd3 {[%clk 0:01:30.9]} 21... g4 {[%clk 0:01:40.4]} 22.
Bxe4 {[%clk 0:01:27.1]} 22... dxe4 {[%clk 0:01:41.3]} 23. Bg3 {[%clk 0:01:22.8]}
23... cxd4 {[%clk 0:01:31.7]} 24. Bf4 {[%clk 0:01:21.6]} 24... Qg7 {[%clk
0:01:25.8]} 25. cxd4 {[%clk 0:01:20]} 25... Bc6 {[%clk 0:01:18.3]} 26. Rc1
{[%clk 0:01:13.3]} 26... Rd7 {[%clk 0:01:14.6]} 27. Qd2 {[%clk 0:01:11.1]} 27...
Rad8 {[%clk 0:01:08.9]} 28. Be3 {[%clk 0:01:01.8]} 28... Qxe5 {[%clk 0:00:52.4]}
29. Qf2 {[%clk 0:00:39]} 29... Qg7 {[%clk 0:00:32.7]} 30. Rfd1 {[%clk
0:00:33.4]} 30... Qg6 {[%clk 0:00:27.1]} 31. Qf4 {[%clk 0:00:28.7]} 31... h5
{[%clk 0:00:19]} 32. g3 {[%clk 0:00:27.1]} 32... Kh7 {[%clk 0:00:16.4]} 33. Kg1
{[%clk 0:00:27.3]} 33... Qf6 {[%clk 0:00:14.4]} 34. b4 {[%clk 0:00:26.8]} 34...
e5 {[%clk 0:00:11.1]} 35. Qf2 {[%clk 0:00:18.5]} 35... exd4 {[%clk 0:00:09.1]}
36. Rxd4 {[%clk 0:00:16.2]} 36... Rxd4 {[%clk 0:00:08.6]} 37. Bxd4 {[%clk
0:00:14.9]} 37... Qxd4 {[%clk 0:00:08.6]} 38. b5 {[%clk 0:00:10.6]} 38... Qxf2+
{[%clk 0:00:07]} 39. Kxf2 {[%clk 0:00:11.5]} 39... Bxb5 {[%clk 0:00:06]} 40.
Rc7+ {[%clk 0:00:10.6]} 40... Rd7 {[%clk 0:00:06.6]} 41. Rc5 {[%clk 0:00:09.7]}
41... Bc6 {[%clk 0:00:03.8]} 42. Rxf5 {[%clk 0:00:09.5]} 42... Kg6 {[%clk
0:00:04.4]} 43. Rf8 {[%clk 0:00:09]} 43... Rd2+ {[%clk 0:00:04.6]} 44. Ke3
{[%clk 0:00:09.4]} 44... Rxh2 {[%clk 0:00:02.9]} 45. Rg8+ {[%clk 0:00:09.9]}
45... Kf7 {[%clk 0:00:03.4]} 46. Rh8 {[%clk 0:00:09.8]} 46... Rxa2 {[%clk
0:00:03.9]} 47. Rh7+ {[%clk 0:00:09.4]} 47... Kg6 {[%clk 0:00:03.4]} 48. Rh8
{[%clk 0:00:09.4]} 48... Ra3+ {[%clk 0:00:03.9]} 49. Kd4 {[%clk 0:00:08.5]}
49... Rxg3 {[%clk 0:00:04.2]} 50. Rg8+ {[%clk 0:00:07.8]} 50... Kf5 {[%clk
0:00:04.7]} 51. Rf8+ {[%clk 0:00:07.6]} 51... Kg5 {[%clk 0:00:04.4]} 52. Rg8+
{[%clk 0:00:06.3]} 52... Kh4 {[%clk 0:00:04.8]} 53. Ra8 {[%clk 0:00:04.2]} 53...
Rd3+ {[%clk 0:00:05]} 54. Ke5 {[%clk 0:00:03.5]} 54... e3 {[%clk 0:00:05.4]} 55.
Rxa7 {[%clk 0:00:03.9]} 55... e2 {[%clk 0:00:05.9]} 56. Ra1 {[%clk 0:00:04.7]}
56... Re3+ {[%clk 0:00:05.1]} 57. Kf4 {[%clk 0:00:03.9]} 57... e1=Q {[%clk
0:00:05.4]} 0-1